bitfinex-derivatives/quotes_BTCF0:USTF0_20241203
["timestamp","ask_amount","ask_price","bid_price","bid_amount"]
[1733239215853,0.00607858,95989.0,95988.0,0.053116]
[1733239216052,0.01507858,95989.0,95988.0,0.053116]
[1733239216656,0.04479069,95989.0,95988.0,0.053116]
[1733239216960,0.03979069,95989.0,95988.0,0.052116]
[1733239218252,0.00100069,95989.0,95988.0,0.052116]
[1733239218555,0.5202,96021.0,96010.0,0.052064]
[1733239218856,0.412864,96011.0,96010.0,0.052104]
[1733239219257,0.51712605,96011.0,96010.0,4e-05]
[1733239219568,0.54693276,96011.0,96010.0,4e-05]
[1733239219760,0.49486876,96011.0,96010.0,0.052104]
[1733239220149,0.50086876,96011.0,96010.0,0.052104]
[1733239220354,0.50486876,96011.0,96010.0,0.052104]
[1733239221154,0.50486876,96011.0,96010.0,4e-05]
[1733239221155,0.50086876,96011.0,96010.0,4e-05]
[1733239221351,0.50586876,96011.0,96010.0,4e-05]
[1733239221851,0.50786876,96011.0,96010.0,0.053104]
[1733239222054,0.14706876,96011.0,96010.0,0.053104]
[1733239222355,0.03488962,96011.0,96010.0,0.052104]
[1733239222545,0.04088962,96011.0,96010.0,0.053104]
[1733239223053,0.03988962,96011.0,96010.0,0.053104]
[1733239223247,0.04088962,96011.0,96010.0,0.413904]
[1733239223755,0.03688962,96011.0,96010.0,0.414904]
[1733239224059,0.14604489,96011.0,96010.0,0.054104]
[1733239224354,0.14604489,96011.0,96010.0,0.00204]
[1733239224564,0.14104489,96011.0,96010.0,0.00104]
[1733239224748,0.30454489,96011.0,96010.0,0.00104]
[1733239225059,0.03488962,96011.0,96010.0,0.00104]
[1733239225856,0.13904489,96011.0,96010.0,0.00104]
[1733239226157,0.13904489,96011.0,95983.0,0.5302]
[1733239226158,0.14704489,96011.0,95988.0,0.052076]
[1733239226346,0.3608,95994.0,95977.0,0.2006]
[1733239226549,0.3608,95994.0,95986.0,0.052077]
[1733239226550,4.001e-05,95989.0,95986.0,0.052077]
[1733239226759,4.001e-05,95989.0,95987.0,0.052077]
[1733239227079,0.1041824,95988.0,95987.0,0.052077]
[1733239227562,4.001e-05,95989.0,95987.0,0.052077]
[1733239227950,4.001e-05,95989.0,95988.0,4e-05]
[1733239229459,4.001e-05,95989.0,95988.0,0.00204]
[1733239229854,0.00304001,95989.0,95988.0,0.20264]
[1733239230555,0.0294263,95989.0,95988.0,0.20264]
[1733239230756,0.00104001,95989.0,95988.0,0.20264]
[1733239230949,0.00104001,95989.0,95983.0,0.3608]
[1733239231152,0.00104001,95989.0,95938.0,0.17712446]
[1733239231153,0.052087,95969.0,95938.0,0.17712446]
[1733239231359,0.7216,95950.0,95932.0,0.01302601]
[1733239231556,0.7216,95950.0,95895.0,0.01235655]
[1733239231557,0.052107,95932.0,95927.0,0.178493]
[1733239231763,0.052107,95932.0,95895.0,0.23821337]
[1733239231764,0.3608,95917.0,95895.0,0.23821337]
[1733239231954,0.7216,95896.0,95886.0,0.01303024]
[1733239232155,0.3608,95887.0,95865.0,0.01303024]
[1733239232463,0.3608,95887.0,95849.0,0.00096]
[1733239232464,0.72172001,95870.0,95849.0,0.00096]
[1733239232652,0.3608,95856.0,95849.0,0.00096]
[1733239232852,0.36092001,95856.0,95855.0,0.02096598]
[1733239233053,0.46988122,95856.0,95840.0,0.3393]
[1733239233252,0.46988122,95856.0,95822.0,0.176]
[1733239233253,0.3608,95841.0,95822.0,0.05516324]
[1733239233461,0.7216,95823.0,95801.0,0.1634]
[1733239233662,0.48478494,95802.0,95801.0,0.1634]
[1733239233850,0.3608,95806.0,95801.0,0.1634]
[1733239234051,0.3608,95802.0,95801.0,0.18423874]
[1733239234254,0.3608,95802.0,95801.0,0.02096486]
[1733239234255,0.41646909,95802.0,95801.0,0.02096486]
[1733239234460,0.69235531,95802.0,95785.0,0.02083874]
[1733239234767,0.71884112,95786.0,95785.0,0.02083874]
[1733239234963,0.77451902,95786.0,95754.0,0.23832]
[1733239235263,0.36084,95755.0,95750.0,0.43804]
[1733239235468,0.60187944,95754.0,95751.0,0.23832]
[1733239235671,0.3240979,95753.0,95745.0,0.23832]
[1733239235960,0.3608,95746.0,95745.0,0.23832]
[1733239236164,0.3608,95746.0,95738.0,0.02083874]
[1733239236165,0.99656581,95746.0,95738.0,0.02083874]
[1733239236461,1.351519,95745.0,95738.0,0.02083874]
[1733239236662,1.44311445,95744.0,95738.0,0.02083874]
[1733239236860,1.44299215,95743.0,95738.0,0.02083874]
[1733239237165,0.983719,95742.0,95738.0,0.02083874]
[1733239237463,1.15089321,95741.0,95730.0,0.1649]
[1733239237771,0.0001223,95744.0,95735.0,0.05221]
[1733239237772,1.15089321,95740.0,95735.0,0.05221]
[1733239237954,0.41063109,95739.0,95735.0,0.04121]
[1733239238156,0.36870281,95738.0,95735.0,0.04121]
[1733239238358,0.76277675,95737.0,95735.0,0.34121]
[1733239238571,1.23463247,95736.0,95730.0,0.1649]
[1733239238867,1.23463247,95735.0,95730.0,0.4649]
[1733239239064,1.23463247,95735.0,95731.0,0.23848]
[1733239239265,0.30473016,95732.0,95731.0,0.23848]
[1733239239450,0.36887539,95732.0,95731.0,0.53848]
[1733239239656,0.76301149,95732.0,95731.0,0.53848]
[1733239239855,0.76301149,95732.0,95731.0,0.3]
[1733239240064,0.76301149,95732.0,95731.0,2.0386]
[1733239240265,0.24429851,95737.0,95732.0,0.052212]
[1733239240453,0.0001223,95744.0,95733.0,0.2386]
[1733239240454,0.24329851,95741.0,95733.0,0.2386]
[1733239240760,1e-08,95744.0,95743.0,0.052206]
[1733239241165,0.27371083,95744.0,95743.0,4e-05]
[1733239241352,1e-08,95744.0,95743.0,1.50004]
[1733239241557,0.38169397,95744.0,95743.0,0.2386]
[1733239241756,0.38169397,95744.0,95737.0,0.43852]
[1733239242056,4e-05,95738.0,95737.0,0.73852]
[1733239242258,0.1515528,95742.0,95737.0,0.97712]
[1733239242458,0.3608,95739.0,95737.0,0.43848]
[1733239242665,0.15155627,95738.0,95736.0,0.43852]
[1733239242968,0.3608,95739.0,95737.0,1.5]
[1733239243165,0.02089397,95744.0,95738.0,0.290888]
[1733239243166,0.17330672,95744.0,95738.0,0.290888]
[1733239243665,0.02189397,95744.0,95739.0,0.23868]
[1733239243854,0.12106476,95746.0,95739.0,0.290888]
[1733239244164,0.09078955,95740.0,95739.0,0.590888]
[1733239244365,0.09078955,95740.0,95739.0,0.59083795]
[1733239244764,0.02936547,95754.0,95739.0,0.59083795]
[1733239244765,0.09092303,95750.0,95739.0,0.23862995]
[1733239244964,0.00013348,95750.0,95747.0,0.052203]
[1733239245168,0.00013348,95750.0,95744.0,0.3608]
[1733239245169,0.00013348,95750.0,95744.0,0.09958897]
[1733239245463,0.3608,95746.0,95745.0,0.23868]
[1733239245863,0.3608,95746.0,95745.0,0.53868]
[1733239246067,0.02089396,95748.0,95746.0,0.052204]
[1733239246259,0.3608,95747.0,95745.0,0.23296]
[1733239246460,0.3608,95747.0,95746.0,0.232]
[1733239247260,0.3608,95747.0,95741.0,0.052207]
[1733239247467,0.3608,95747.0,95746.0,0.43872]
[1733239247968,0.02089396,95748.0,95747.0,0.052204]
[1733239248469,0.02089396,95748.0,95746.0,0.50558954]
[1733239248670,0.02089396,95748.0,95747.0,0.052204]
[1733239248874,0.0104,95765.0,95759.0,0.052197]
[1733239249169,0.02089396,95776.0,95759.0,0.66084]
[1733239249370,0.02089396,95776.0,95775.0,0.412988]
[1733239249590,0.02089396,95776.0,95775.0,0.490988]
[1733239249774,0.3818294,95776.0,95775.0,0.257812]
[1733239250071,0.0210294,95776.0,95775.0,0.257812]
[1733239250664,0.3818294,95776.0,95775.0,0.257812]
[1733239251265,0.3828294,95776.0,95775.0,0.025812]
[1733239251465,0.3828294,95776.0,95775.0,0.257812]
[1733239251466,0.36193544,95776.0,95775.0,0.257812]
[1733239251663,0.36193544,95776.0,95767.0,0.43876]
[1733239251870,0.39970566,95776.0,95775.0,0.233]
[1733239252167,0.39970566,95776.0,95775.0,0.23296]
[1733239252364,0.39970566,95776.0,95775.0,0.001]
[1733239252567,0.39070566,95776.0,95775.0,0.003]
[1733239252771,0.01,95768.0,95756.0,0.232]
[1733239253077,0.36084,95757.0,95755.0,0.284199]
[1733239253369,0.3608,95767.0,95766.0,0.052193]
[1733239253574,0.3608,95767.0,95766.0,0.34262422]
[1733239253761,0.3608,95767.0,95766.0,0.052233]
[1733239254463,0.3608,95767.0,95766.0,0.22532]
[1733239254660,0.3608,95767.0,95766.0,0.277513]
[1733239254859,0.3658,95767.0,95766.0,0.277513]
[1733239255467,0.22935619,95776.0,95766.0,0.25020597]
[1733239255676,0.02977022,95776.0,95775.0,0.052189]
[1733239255864,0.01,95780.0,95775.0,4e-05]
[1733239256060,0.01,95780.0,95777.0,0.052187]
[1733239256270,0.01,95780.0,95779.0,4e-05]
[1733239256576,0.01013214,95780.0,95779.0,4e-05]
[1733239257566,0.001,95776.0,95773.0,0.22532]
[1733239257869,0.02917204,95794.0,95773.0,0.58612]
[1733239258071,0.18279538,95806.0,95799.0,0.052175]
[1733239258277,0.0293867,95805.0,95799.0,0.277495]
[1733239258572,0.18279538,95807.0,95806.0,0.052172]
[1733239258772,7.943e-05,95807.0,95806.0,0.052172]
[1733239259075,4.3e-07,95807.0,95806.0,0.052212]
[1733239259778,4.3e-07,95807.0,95806.0,0.352212]
[1733239259967,0.18411551,95833.0,95831.0,0.052158]
[1733239260173,0.18411551,95833.0,95806.0,0.30004]
[1733239260174,0.21562004,95837.0,95832.0,0.3608]
[1733239260376,0.05074561,95852.0,95835.0,0.052156]
[1733239260377,0.05074491,95836.0,95835.0,0.052156]
[1733239260565,0.21562004,95842.0,95836.0,0.00012001]
[1733239260768,0.17586966,95841.0,95836.0,0.00012001]
[1733239260969,0.02867554,95842.0,95841.0,0.00012001]
[1733239261166,0.02867554,95842.0,95841.0,0.05227301]
[1733239261167,0.05083739,95842.0,95841.0,0.05227301]
[1733239261764,0.05083739,95842.0,95841.0,0.00012001]
[1733239261765,0.33103325,95842.0,95841.0,0.00012001]
[1733239261980,0.004,95841.0,95826.0,0.3608]
[1733239262284,4e-05,95827.0,95826.0,0.3608]
[1733239262465,0.17585421,95827.0,95826.0,0.3608]
[1733239262664,0.15707159,95827.0,95826.0,0.052161]
[1733239262869,0.15707159,95827.0,95811.0,0.22528]
[1733239263072,0.27944888,95820.0,95818.0,0.052165]
[1733239263265,4e-05,95812.0,95811.0,0.00603134]
[1733239263482,0.27980274,95812.0,95811.0,0.07305507]
[1733239263776,0.10439526,95812.0,95811.0,0.07305507]
[1733239263976,4e-05,95812.0,95811.0,0.052169]
[1733239264977,0.21759382,95827.0,95823.0,0.052162]
[1733239265182,0.21759382,95832.0,95825.0,0.3608]
[1733239265368,0.21759382,95834.0,95826.0,8e-05]
[1733239265573,0.21759382,95839.0,95826.0,8e-05]
[1733239265767,0.27976349,95848.0,95825.0,0.57924]
[1733239265768,0.21759382,95838.0,95833.0,8e-05]
[1733239265977,0.27976349,95848.0,95835.0,0.052157]
[1733239265978,0.21759382,95836.0,95835.0,0.052157]
[1733239266177,0.10434873,95838.0,95833.0,8e-05]
[1733239266382,0.21739784,95836.0,95833.0,8e-05]
[1733239266583,0.21739784,95836.0,95833.0,0.052238]
[1733239266584,4e-05,95834.0,95833.0,0.052238]
[1733239267376,0.00146235,95834.0,95833.0,0.052238]
[1733239267576,0.00146235,95834.0,95833.0,0.413038]
[1733239267873,0.24867865,95841.0,95833.0,0.413038]
[1733239267874,0.15896978,95838.0,95836.0,0.052156]
[1733239268085,0.24833567,95841.0,95833.0,0.18359409]
[1733239268274,9.768e-05,95842.0,95840.0,0.052154]
[1733239268677,6.8e-07,95842.0,95841.0,4e-05]
[1733239269372,6.8e-07,95842.0,95841.0,0.36084]
[1733239270675,6.8e-07,95842.0,95841.0,0.66084]
[1733239271772,0.00100068,95842.0,95841.0,0.36784]
[1733239272283,6.8e-07,95842.0,95841.0,0.66084]
[1733239272579,0.0208792,95882.0,95841.0,0.66584]
[1733239272783,0.0208792,95882.0,95864.0,0.3608]
[1733239272977,0.3608,95875.0,95865.0,0.21844]
[1733239273588,0.02101335,95866.0,95865.0,4e-05]
[1733239274081,0.0224364,95866.0,95865.0,4e-05]
[1733239274485,0.29217978,95866.0,95841.0,4e-05]
[1733239274785,0.3608,95859.0,95841.0,0.00504]
[1733239274982,0.3608,95849.0,95841.0,0.00504]
[1733239275183,0.3608,95859.0,95844.0,0.3608]
[1733239275680,0.10432587,95858.0,95844.0,0.3608]
[1733239275876,0.10432587,95858.0,95841.0,0.00104]
[1733239276077,0.3608,95851.0,95841.0,0.00104]
[1733239276272,4e-05,95842.0,95841.0,0.00104]
[1733239276682,4e-05,95842.0,95841.0,0.21272]
[1733239277584,0.0014753,95842.0,95841.0,0.21272]
[1733239277887,0.0014753,95842.0,95841.0,0.21172]
[1733239278579,0.0014753,95842.0,95841.0,0.21272]
[1733239279083,0.0014753,95842.0,95841.0,0.21572]
[1733239279987,0.00013415,95866.0,95841.0,0.51572]
[1733239280289,0.02973718,95866.0,95861.0,0.3608]
[1733239280481,0.00013415,95866.0,95862.0,0.21168]
[1733239281583,0.00513415,95866.0,95862.0,0.21168]
[1733239282189,0.00513415,95866.0,95862.0,0.21268]
[1733239282190,0.00613415,95866.0,95862.0,0.21268]
[1733239282575,0.03600147,95866.0,95862.0,0.001]
[1733239282887,0.10431444,95865.0,95862.0,0.001]
[1733239283083,0.10431444,95865.0,95862.0,0.00018124]
[1733239283975,0.05206,95864.0,95841.0,4e-05]
[1733239284191,0.3608,95842.0,95841.0,4e-05]
[1733239284484,0.3608,95842.0,95824.0,0.02087197]
[1733239284485,0.51750407,95842.0,95824.0,0.02087197]
[1733239284682,0.3608,95833.0,95824.0,0.02087197]
[1733239284881,0.62181905,95842.0,95824.0,0.02087197]
[1733239284882,4e-05,95825.0,95824.0,0.02087197]
[1733239285284,4e-05,95825.0,95824.0,0.23251197]
[1733239285490,4e-05,95825.0,95824.0,0.02087197]
[1733239285987,4e-05,95825.0,95824.0,0.22895197]
[1733239286380,0.18582976,95848.0,95824.0,0.52895197]
[1733239286581,0.00013415,95866.0,95847.0,0.7216]
[1733239286790,0.00013415,95866.0,95858.0,0.3608]
[1733239287786,0.05206,95904.0,95862.0,0.3608]
[1733239287986,0.05206,95904.0,95874.0,0.3608]
[1733239288188,0.0298694,95891.0,95874.0,0.36084001]
[1733239288579,0.00012236,95887.0,95885.0,9.76e-05]
[1733239288794,0.00012236,95887.0,95885.0,1.0044176]
[1733239288981,0.3406879,95905.0,95885.0,1.00445761]
[1733239289290,0.3406879,95905.0,95893.0,0.36084001]
[1733239289586,0.0026,95942.0,95899.0,0.36084001]
[1733239289786,0.02951116,95945.0,95940.0,0.3608]
[1733239289989,9.364e-05,95942.0,95941.0,0.64352]
[1733239290191,0.20593521,95943.0,95941.0,0.94352]
[1733239290489,0.00012001,95950.0,95941.0,0.94352]
[1733239290690,0.00012001,95950.0,95949.0,0.3608]
[1733239291093,0.00012001,95950.0,95949.0,0.6608]
[1733239291390,0.00012001,95950.0,95949.0,0.6609239]
[1733239291581,0.00010569,95964.0,95949.0,0.6609239]
[1733239291781,0.00010569,95964.0,95963.0,0.3608]
[1733239291995,0.00010569,95964.0,95963.0,0.56596001]
[1733239293891,0.00010569,95964.0,95963.0,0.36096001]
[1733239294186,0.00010569,95964.0,95963.0,0.56592001]
[1733239294606,0.00510569,95964.0,95963.0,0.56692001]
[1733239294781,0.00510569,95964.0,95963.0,1.00508001]
[1733239295296,0.00310569,95964.0,95963.0,1.00508001]
[1733239296990,0.3608,95989.0,95963.0,1.00508001]
[1733239297190,0.3608,95989.0,95978.0,0.3608]
[1733239297379,0.3608,95989.0,95988.0,0.00016001]
[1733239297885,0.36092646,95989.0,95988.0,0.00016001]
[1733239298085,0.38983862,95989.0,95988.0,0.00016001]
[1733239299189,0.02903862,95989.0,95988.0,0.00116001]
[1733239299397,0.00012646,95989.0,95988.0,0.00116001]
[1733239300080,0.3608,96012.0,95988.0,0.43916001]
[1733239300288,0.1704,96017.0,95988.0,0.43916001]
[1733239300289,0.1704,96017.0,95999.0,0.3608]
[1733239300591,0.02958658,96011.0,95999.0,0.56584001]
[1733239301291,0.00013424,96009.0,95999.0,0.56584001]
[1733239301991,0.00013424,96009.0,95999.0,0.56684001]
[1733239302401,0.00013424,96009.0,95999.0,0.56584001]
[1733239302691,0.00013424,96009.0,95999.0,0.56684001]
[1733239303588,0.00013424,96009.0,95999.0,0.56680001]
[1733239304188,0.00013424,96009.0,95999.0,0.36096001]
[1733239304388,0.4638,96000.0,95988.0,0.02188056]
[1733239304585,0.4638,96000.0,95988.0,0.02084056]
[1733239304794,4e-05,95989.0,95988.0,0.02084056]
[1733239305106,0.1041672,95999.0,95988.0,0.02084056]
[1733239305393,0.3608,95992.0,95979.0,0.00156263]
[1733239305593,0.1041672,95999.0,95979.0,0.00156263]
[1733239305892,0.13275839,96000.0,95989.0,0.29043122]
[1733239306094,0.13219838,96000.0,95989.0,0.29043122]
[1733239306296,0.13219838,96000.0,95999.0,4.001e-05]
[1733239308296,0.12919838,96000.0,95999.0,4.001e-05]
[1733239309088,0.13319838,96000.0,95999.0,0.00104001]
[1733239309993,0.23736558,96000.0,95982.0,0.22563557]
[1733239310193,0.3608,95994.0,95982.0,0.22563557]
[1733239310391,0.3608,95994.0,95983.0,0.2048]
[1733239310790,0.3608,95984.0,95973.0,0.00096]
[1733239310993,0.3608,95974.0,95959.0,0.3608]
[1733239311191,0.36084,95974.0,95964.0,0.29043122]
[1733239311395,0.3608,95974.0,95965.0,0.2048]
[1733239311598,0.3608,95974.0,95966.0,0.2048]
[1733239311992,0.3608,95974.0,95973.0,0.004]
[1733239312194,0.02932917,95976.0,95973.0,0.004]
[1733239312496,0.3608,95984.0,95975.0,4e-05]
[1733239312697,0.38979499,95984.0,95975.0,4e-05]
[1733239312890,0.38979499,95984.0,95972.0,0.2048]
[1733239312891,0.38979499,95984.0,95983.0,4e-05]
[1733239313900,0.02899499,95984.0,95983.0,4e-05]
[1733239314096,0.1,96000.0,95983.0,4e-05]
[1733239314407,0.1,96000.0,95979.0,0.3608]
[1733239314408,0.3608,95991.0,95979.0,0.3608]
[1733239315097,0.3608,95991.0,95983.0,0.002]
[1733239315098,0.10418457,95990.0,95983.0,0.002]
[1733239315805,0.10418457,95990.0,95979.0,0.3688]
[1733239316205,4e-05,95980.0,95979.0,0.008]
[1733239316401,4e-05,95980.0,95977.0,0.2006]
[1733239316799,4e-05,95978.0,95976.0,0.2006]
[1733239317101,0.10418457,95990.0,95976.0,0.2006]
[1733239317804,0.10418457,95990.0,95981.0,0.3608]
[1733239317995,0.3608,95990.0,95981.0,0.3608]
[1733239318799,0.3608,95999.0,95981.0,0.3608]
[1733239319203,0.3608,95999.0,95998.0,4e-05]
[1733239319807,0.4649824,95999.0,95998.0,4e-05]
[1733239321905,0.4659824,95999.0,95998.0,4e-05]
[1733239322503,0.4649824,95999.0,95998.0,4e-05]
[1733239322701,0.4659824,95999.0,95998.0,4e-05]
[1733239323113,0.3618,95999.0,95998.0,4e-05]
[1733239323311,0.46596829,95999.0,95998.0,4e-05]
[1733239325605,0.46496829,95999.0,95998.0,4e-05]
[1733239325910,0.46596829,95999.0,95998.0,4e-05]
[1733239326506,0.62146934,95999.0,95980.0,0.23737209]
[1733239326710,0.3608,95985.0,95978.0,0.23737209]
[1733239327015,4e-05,95981.0,95975.0,0.23737209]
[1733239327407,0.3618,95999.0,95979.0,0.3608]
[1733239327716,0.3618,95999.0,95979.0,0.2006]
[1733239327717,0.3608,95989.0,95979.0,0.2006]
[1733239328313,0.10418403,95988.0,95979.0,0.2006]
[1733239328812,0.001,95999.0,95979.0,0.2006]
[1733239329112,0.001,95999.0,95983.0,0.3608]
[1733239329113,0.10418403,95998.0,95983.0,0.3608]
[1733239329305,0.3608,95997.0,95983.0,0.3608]
[1733239329502,0.001,95989.0,95983.0,0.3608]
[1733239330014,0.3608,95997.0,95983.0,0.59817209]
[1733239330214,0.3608,95984.0,95981.0,0.23737209]
[1733239330418,0.3608,95984.0,95979.0,0.004]
[1733239330721,4e-05,95982.0,95979.0,0.004]
[1733239331311,0.10418782,95981.0,95979.0,0.004]
[1733239332316,0.10418782,95981.0,95967.0,0.43797209]
[1733239332617,4e-05,95972.0,95967.0,0.2006]
[1733239333717,4e-05,95972.0,95966.0,0.2006]
[1733239333915,4e-05,95972.0,95963.0,0.23737209]
[1733239334122,0.92184554,95972.0,95957.0,0.29673128]
[1733239334420,0.3608,95958.0,95937.0,0.29673128]
[1733239334611,0.3608,95950.0,95937.0,0.29673128]
[1733239334920,0.51689595,95950.0,95920.0,0.19022979]
[1733239335218,0.6608,95958.0,95940.0,0.18762979]
[1733239335219,0.00056001,95958.0,95940.0,0.18762979]
[1733239335523,0.3608,95961.0,95944.0,0.3608]
[1733239335814,0.3608,95961.0,95960.0,4e-05]
[1733239336513,9.941e-05,95971.0,95960.0,0.36084]
[1733239336717,9.941e-05,95971.0,95960.0,0.18766979]
[1733239336910,9.941e-05,95971.0,95970.0,4e-05]
[1733239337609,9.941e-05,95971.0,95970.0,0.052123]
[1733239337816,0.10430352,95971.0,95970.0,0.052123]
[1733239338711,0.13407401,95971.0,95970.0,0.052123]
[1733239340022,9e-07,95971.0,95970.0,0.412923]
[1733239340209,4e-05,95982.0,95981.0,0.052077]
[1733239340610,4e-05,95982.0,95981.0,0.052117]
[1733239341014,9.8e-07,95982.0,95981.0,0.052117]
[1733239342422,0.3608,95992.0,95989.0,0.052072]
[1733239342622,0.3608,95992.0,95991.0,0.052071]
[1733239342809,0.3608,95992.0,95991.0,0.05215099]
[1733239343010,0.38974134,95992.0,95991.0,0.05215099]
[1733239343211,0.27028608,96035.0,95991.0,0.05215099]
[1733239343212,0.3608,96012.0,95999.0,0.052067]
[1733239343424,9.2e-07,96005.0,96004.0,0.052064]
[1733239343917,9.2e-07,96005.0,96004.0,0.252664]
[1733239344636,9.2e-07,96005.0,96004.0,0.253664]
[1733239346021,0.03002709,96005.0,96004.0,0.253664]
[1733239346217,9.2e-07,96005.0,96004.0,0.253664]
[1733239348911,9.2e-07,96005.0,96004.0,0.053064]
[1733239349112,9.2e-07,96005.0,96004.0,0.253344]
[1733239350029,0.02991475,96012.0,96011.0,0.052064]
[1733239350223,0.3608,96027.0,96011.0,0.3608]
[1733239350517,0.3608,96027.0,96026.0,0.052056]
[1733239351226,0.46507085,96027.0,96026.0,0.052056]
[1733239351732,0.49445773,96027.0,96026.0,0.052056]
[1733239353225,0.49445773,96027.0,96026.0,0.053056]
[1733239356327,0.13365773,96027.0,96026.0,0.053056]
[1733239356723,0.21714458,96041.0,96026.0,0.105112]
[1733239356922,0.16082558,96041.0,96040.0,0.052048]
[1733239357127,0.24816523,96048.0,96047.0,0.052044]
[1733239357331,0.27724706,96048.0,96047.0,0.052044]
[1733239357521,0.27724706,96048.0,96047.0,0.05212399]
[1733239357716,0.27736849,96048.0,96047.0,0.05212399]
[1733239358325,0.19343966,96048.0,96047.0,0.05312399]
[1733239358530,4.3e-07,96048.0,96047.0,0.05312399]
[1733239359434,4.3e-07,96048.0,96047.0,0.25336399]
[1733239359933,4.3e-07,96048.0,96047.0,0.25236399]
[1733239360121,4.3e-07,96048.0,96047.0,0.25336399]
[1733239360836,4.3e-07,96048.0,96047.0,0.05312399]
[1733239361131,4.3e-07,96048.0,96047.0,0.25332399]
[1733239363427,4.3e-07,96048.0,96047.0,0.05312399]
[1733239363627,4.3e-07,96048.0,96047.0,0.25332399]
[1733239363829,4.3e-07,96048.0,96047.0,0.05312399]
[1733239364029,0.10411558,96048.0,96047.0,0.05312399]
[1733239364825,0.46491558,96048.0,96047.0,0.00107999]
[1733239365037,0.46491558,96048.0,96047.0,0.05312399]
[1733239365228,4.3e-07,96048.0,96047.0,0.05312399]
[1733239368042,4.3e-07,96048.0,96047.0,0.25328399]
[1733239372538,4.3e-07,96048.0,96047.0,0.05312399]
[1733239372743,4.3e-07,96048.0,96047.0,0.27411059]
[1733239374943,4.3e-07,96048.0,96047.0,0.30335326]
[1733239377242,0.33699416,96065.0,96064.0,0.052035]
[1733239377440,0.33699416,96065.0,96064.0,0.251675]
[1733239377737,0.33699416,96065.0,96064.0,0.25175499]
[1733239378145,0.33709904,96065.0,96064.0,0.25175499]
[1733239378339,0.33709904,96065.0,96064.0,0.25275499]
[1733239379346,0.28319704,96065.0,96064.0,0.25275499]
[1733239379640,4e-08,96065.0,96064.0,0.25275499]
[1733239380439,0.02886473,96065.0,96064.0,0.25271499]
[1733239381250,7.3e-07,96065.0,96064.0,0.61351499]
[1733239381443,0.3608,96086.0,96085.0,0.052024]
[1733239381853,0.3905289,96086.0,96085.0,0.05210399]
[1733239382248,0.3906074,96086.0,96085.0,0.05210399]
[1733239383452,0.3906074,96086.0,96085.0,0.05310399]
[1733239383946,0.3906074,96086.0,96085.0,0.05210399]
[1733239387553,0.0049,96092.0,96091.0,0.05202]
[1733239387752,0.0049,96092.0,96091.0,0.41282]
[1733239388054,0.0049,96092.0,96091.0,0.41289999]
[1733239388256,0.03416914,96092.0,96091.0,0.41289999]
[1733239388659,0.03425572,96092.0,96091.0,0.41289999]
[1733239389357,0.00498658,96092.0,96091.0,0.41289999]
[1733239390251,0.00498658,96092.0,96091.0,0.61245999]
[1733239390663,0.03387785,96092.0,96091.0,0.61245999]
[1733239390854,0.00498658,96092.0,96091.0,0.61345999]
[1733239392052,0.1,96100.0,96099.0,0.052017]
[1733239392252,0.12967338,96100.0,96099.0,0.412817]
[1733239392454,0.12967338,96100.0,96099.0,0.41289699]
[1733239393060,0.1297809,96100.0,96099.0,0.41289699]
[1733239394953,0.1297809,96100.0,96099.0,0.61245699]
[1733239396362,0.1499,96123.0,96099.0,0.61245699]
[1733239396564,0.1798095,96123.0,96121.0,0.052004]
[1733239396759,0.1798095,96123.0,96122.0,0.05208399]
[1733239397363,0.28395048,96123.0,96122.0,0.05208399]
[1733239398055,0.28395048,96123.0,96122.0,0.25160399]
[1733239398256,0.17989167,96123.0,96122.0,0.25160399]
[1733239398665,0.17989167,96123.0,96122.0,0.05208399]
[1733239398862,0.17989167,96123.0,96122.0,0.25160399]
[1733239399161,0.02999167,96123.0,96122.0,0.05208399]
[1733239399361,0.13402558,96123.0,96122.0,0.25160399]
[1733239399566,0.02999167,96123.0,96122.0,0.05208399]
[1733239399775,0.02999167,96123.0,96122.0,0.25160399]
[1733239400167,0.02999167,96123.0,96122.0,0.25260399]
[1733239401273,0.02999167,96123.0,96122.0,0.25160399]
[1733239401585,0.02999167,96123.0,96122.0,0.25260399]
[1733239401778,0.05206,96147.0,96122.0,0.25260399]
[1733239402081,0.05206,96147.0,96146.0,0.05207099]
[1733239402280,0.05206,96147.0,96146.0,0.25159099]
[1733239402671,0.05206,96147.0,96146.0,0.05207099]
[1733239402981,0.05213878,96147.0,96146.0,0.05207099]
[1733239403280,7.878e-05,96147.0,96146.0,0.25159099]
[1733239404286,7.878e-05,96147.0,96146.0,0.25259099]
[1733239404974,7.878e-05,96147.0,96146.0,0.05307099]
[1733239405185,7.878e-05,96147.0,96146.0,0.25255099]
[1733239406786,7.878e-05,96147.0,96146.0,0.05307099]
[1733239407081,7.878e-05,96147.0,96146.0,0.25187099]
[1733239409583,7.878e-05,96147.0,96146.0,0.05307099]
[1733239409884,0.51688172,96147.0,96126.0,0.00156037]
[1733239410082,0.05206,96146.0,96136.0,0.052001]
[1733239410287,0.05206,96146.0,96145.0,0.051996]
[1733239410681,0.05206,96146.0,96145.0,0.250796]
[1733239411178,7.878e-05,96147.0,96146.0,0.051996]
[1733239411586,7.878e-05,96147.0,96146.0,0.052036]
[1733239412884,7.878e-05,96147.0,96146.0,0.053036]
[1733239414788,0.05213878,96147.0,96146.0,0.053036]
[1733239415186,0.45614672,96147.0,96133.0,0.3608]
[1733239415383,0.05206,96128.0,96126.0,0.00156037]
[1733239415582,0.56406,96127.0,96126.0,0.052007]
[1733239416084,0.56406,96127.0,96118.0,0.1988]
[1733239416085,0.66806794,96127.0,96118.0,0.1988]
[1733239416385,0.66806794,96127.0,96126.0,0.052007]
[1733239416386,0.41286,96127.0,96126.0,0.052007]
[1733239416590,0.3608,96127.0,96126.0,0.052007]
[1733239417085,0.3608,96138.0,96136.0,0.052001]
[1733239417285,0.3608,96138.0,96136.0,0.250801]
[1733239417481,0.3608,96138.0,96137.0,4e-05]
[1733239417678,0.1446,96145.0,96137.0,4e-05]
[1733239417886,0.1446,96145.0,96144.0,0.051997]
[1733239418087,0.1446,96145.0,96144.0,0.052037]
[1733239419085,0.5084,96145.0,96144.0,0.052037]
[1733239419283,0.5084,96145.0,96144.0,4e-05]
[1733239420088,0.2516101,96145.0,96144.0,4e-05]
[1733239420287,0.2516101,96145.0,96144.0,0.052037]
[1733239420587,0.003,96145.0,96144.0,0.052037]